[Event "Titled Tuesday Blitz June 28 Early 2022"]
[White "Shohat, Yotam"]
[Black "Barp, Alberto"]
[WhiteFideId "2813955"]
[BlackFideId "872555"]
[WhiteElo "2119"]
[BlackElo "2229"]
[Result "1/2-1/2"]
[Round "04"]
[TimeControl "180+1"]
[Date "2022.06.28"]
[WhiteClock "0:00:02"]
[BlackClock "0:00:02"]

1. e4 {[%clk 0:03:00]}  Nc6 {[%clk 0:02:56]} 2. d4 {[%clk 0:02:56]}  d6 {[%clk 0:02:56]} 3. Nf3 {[%clk 0:02:52]}  Nf6 {[%clk 0:02:56]} 4. Nc3 {[%clk 0:02:46]}  g6 {[%clk 0:02:56]} 5. d5 {[%clk 0:02:31]}  Nb8 {[%clk 0:02:56]} 6. h3 {[%clk 0:02:20]}  Bg7 {[%clk 0:02:56]} 7. Bc4 {[%clk 0:02:15]}  O-O {[%clk 0:02:54]} 8. O-O {[%clk 0:02:12]}  a6 {[%clk 0:02:44]} 9. a4 {[%clk 0:02:10]}  c6 {[%clk 0:02:42]} 10. Re1 {[%clk 0:02:08]}  Nbd7 {[%clk 0:02:40]} 11. Bg5 {[%clk 0:01:57]}  h6 {[%clk 0:02:34]} 12. Bf4 {[%clk 0:01:54]}  Kh7 {[%clk 0:02:29]} 13. Qd2 {[%clk 0:01:51]}  Qc7 {[%clk 0:02:28]} 14. Bf1 {[%clk 0:01:40]}  Re8 {[%clk 0:02:21]} 15. e5 {[%clk 0:01:23]}  dxe5 {[%clk 0:02:16]} 16. Nxe5 {[%clk 0:01:24]}  Nh5 {[%clk 0:02:14]} 17. Nxg6 {[%clk 0:01:13]}  Nxf4 {[%clk 0:02:13]} 18. Nxf4 {[%clk 0:01:14]}  Nf6 {[%clk 0:02:08]} 19. Rad1 {[%clk 0:00:50]}  Kg8 {[%clk 0:02:02]} 20. dxc6 {[%clk 0:00:16]}  bxc6 {[%clk 0:02:02]} 21. Bc4 {[%clk 0:00:16]}  Rb8 {[%clk 0:01:59]} 22. Bb3 {[%clk 0:00:16]}  e5 {[%clk 0:01:57]} 23. Ng6 {[%clk 0:00:15]}  Rxb3 {[%clk 0:01:55]} 24. cxb3 {[%clk 0:00:14]}  fxg6 {[%clk 0:01:55]} 25. Qd3 {[%clk 0:00:13]}  Kh7 {[%clk 0:01:53]} 26. Qc4 {[%clk 0:00:12]}  Bf8 {[%clk 0:01:41]} 27. f4 {[%clk 0:00:10]}  exf4 {[%clk 0:01:36]} 28. Rxe8 {[%clk 0:00:10]}  Nxe8 {[%clk 0:01:36]} 29. Ne4 {[%clk 0:00:10]}  Bf5 {[%clk 0:01:33]} 30. Re1 {[%clk 0:00:09]}  Nd6 {[%clk 0:01:26]} 31. Nxd6 {[%clk 0:00:08]}  Bxd6 {[%clk 0:01:27]} 32. Re8 {[%clk 0:00:08]}  Qa7+ {[%clk 0:01:23]} 33. Kh1 {[%clk 0:00:08]}  h5 {[%clk 0:01:07]} 34. Qg8+ {[%clk 0:00:06]}  Kh6 {[%clk 0:01:08]} 35. h4 {[%clk 0:00:06]}  a5 {[%clk 0:00:52]} 36. Qh8+ {[%clk 0:00:03]}  Qh7 {[%clk 0:00:53]} 37. Qf6 {[%clk 0:00:03]}  Bb4 {[%clk 0:00:09]} 38. Rh8 {[%clk 0:00:03]}  Bd2 {[%clk 0:00:05]} 39. Rxh7+ {[%clk 0:00:03]}  Kxh7 {[%clk 0:00:06]} 40. Qe7+ {[%clk 0:00:04]}  Kh6 {[%clk 0:00:06]} 41. Qf8+ {[%clk 0:00:04]}  Kh7 {[%clk 0:00:07]} 42. Qf7+ {[%clk 0:00:05]}  Kh6 {[%clk 0:00:07]} 43. Qf6 {[%clk 0:00:05]}  Kh7 {[%clk 0:00:07]} 44. Qd4 {[%clk 0:00:04]}  Bb4 {[%clk 0:00:05]} 45. Qxf4 {[%clk 0:00:04]}  c5 {[%clk 0:00:05]} 46. Qc7+ {[%clk 0:00:04]}  Kh6 {[%clk 0:00:05]} 47. Qf4+ {[%clk 0:00:04]}  Kg7 {[%clk 0:00:06]} 48. Qe5+ {[%clk 0:00:05]}  Kf7 {[%clk 0:00:07]} 49. Kg1 {[%clk 0:00:04]}  Be6 {[%clk 0:00:07]} 50. Qf4+ {[%clk 0:00:02]}  Kg8 {[%clk 0:00:07]} 51. Qe3 {[%clk 0:00:03]}  Kf7 {[%clk 0:00:06]} 52. Qd3 {[%clk 0:00:04]}  Bf5 {[%clk 0:00:06]} 53. Qd5+ {[%clk 0:00:04]}  Be6 {[%clk 0:00:07]} 54. Qb7+ {[%clk 0:00:04]}  Kf6 {[%clk 0:00:07]} 55. Qf3+ {[%clk 0:00:05]}  Ke5 {[%clk 0:00:07]} 56. Kf2 {[%clk 0:00:05]}  Bd5 {[%clk 0:00:07]} 57. Qe3+ {[%clk 0:00:05]}  Kf6 {[%clk 0:00:06]} 58. Qf4+ {[%clk 0:00:05]}  Ke6 {[%clk 0:00:05]} 59. Qg5 {[%clk 0:00:04]}  Be4 {[%clk 0:00:04]} 60. Ke3 {[%clk 0:00:04]}  Bf5 {[%clk 0:00:05]} 61. Qd8 {[%clk 0:00:04]}  Ke5 {[%clk 0:00:05]} 62. Qe7+ {[%clk 0:00:03]}  Kd5 {[%clk 0:00:05]} 63. Qf6 {[%clk 0:00:03]}  Bb1 {[%clk 0:00:03]} 64. Qf7+ {[%clk 0:00:03]}  Ke5 {[%clk 0:00:03]} 65. Qe7+ {[%clk 0:00:03]}  Kd5 {[%clk 0:00:03]} 66. Qd7+ {[%clk 0:00:03]}  Ke5 {[%clk 0:00:04]} 67. Qd1 {[%clk 0:00:03]}  Bf5 {[%clk 0:00:03]} 68. Kf3 {[%clk 0:00:02]}  Ke6 {[%clk 0:00:03]} 69. Qe2+ {[%clk 0:00:02]}  Kd5 {[%clk 0:00:04]} 70. Qa6 {[%clk 0:00:03]}  Kd4 {[%clk 0:00:04]} 71. Qc4+ {[%clk 0:00:03]}  Ke5 {[%clk 0:00:04]} 72. Qa6 {[%clk 0:00:03]}  Kd5 {[%clk 0:00:04]} 73. Qb7+ {[%clk 0:00:04]}  Ke5 {[%clk 0:00:03]} 74. Qe7+ {[%clk 0:00:04]}  Kd5 {[%clk 0:00:03]} 75. Kf4 {[%clk 0:00:03]}  Bd2+ {[%clk 0:00:03]} 76. Kg3 {[%clk 0:00:03]}  Bb4 {[%clk 0:00:04]} 77. Qf7+ {[%clk 0:00:04]}  Kd4 {[%clk 0:00:04]} 78. Qf6+ {[%clk 0:00:04]}  Kd3 {[%clk 0:00:04]} 79. Qd6+ {[%clk 0:00:04]}  Kc2 {[%clk 0:00:05]} 80. Qd5 {[%clk 0:00:03]}  Kxb2 {[%clk 0:00:05]} 81. Kf4 {[%clk 0:00:03]}  Kc3 {[%clk 0:00:04]} 82. Kg5 {[%clk 0:00:03]}  Kb2 {[%clk 0:00:02]} 83. Kf6 {[%clk 0:00:02]}  Bc2 {[%clk 0:00:02]} 84. Kg5 {[%clk 0:00:01]}  Bxb3 {[%clk 0:00:02]} 85. Qe5+ {[%clk 0:00:02]}  Bc3 {[%clk 0:00:02]} 86. Qxc5 {[%clk 0:00:02]}  Bc2 {[%clk 0:00:03]} 87. Qb6+ {[%clk 0:00:01]}  Bb4 {[%clk 0:00:03]} 88. Qe6 {[%clk 0:00:01]}  Ka3 {[%clk 0:00:02]} 89. Qf6 {[%clk 0:00:02]}  Bf5 {[%clk 0:00:02]} 90. Qg7 {[%clk 0:00:01]}  Kxa4 {[%clk 0:00:02]} 91. Kh6 {[%clk 0:00:02]}  Bc2 {[%clk 0:00:02]} 92. Qf7 {[%clk 0:00:02]}  Ka3 {[%clk 0:00:02]} 93. Qd7 {[%clk 0:00:03]}  a4 {[%clk 0:00:02]} 94. Qd4 {[%clk 0:00:03]}  Kb3 {[%clk 0:00:02]} 95. Qe3+ {[%clk 0:00:03]}  Bc3 {[%clk 0:00:02]} 96. Qb6+ {[%clk 0:00:03]}  Ka2 {[%clk 0:00:03]} 97. Qc5 {[%clk 0:00:03]}  Kb2 {[%clk 0:00:03]} 98. Qb5+ {[%clk 0:00:03]}  Bb3 {[%clk 0:00:04]} 99. Qe2+ {[%clk 0:00:02]}  Bc2 {[%clk 0:00:04]} 100. Qb5+ {[%clk 0:00:02]}  Kc1 {[%clk 0:00:03]} 101. Qf1+ {[%clk 0:00:02]}  Kb2 {[%clk 0:00:02]} 102. Qb5+ {[%clk 0:00:02]} 1/2-1/2


[Site "https://www.chess.com"]

[Event "Titled Tuesday Blitz June 28 Early 2022"]
[White "Silva Lucena, Cristian"]
[Black "Perez Gormaz, Matias"]
[WhiteFideId "2232588"]
[BlackFideId "3406342"]
[WhiteElo "2223"]
[BlackElo "2341"]
[Result "0-1"]
[Round "04"]
[TimeControl "180+1"]
[Date "2022.06.28"]
[WhiteClock "0:01:33"]
[BlackClock "0:01:48"]

1. e4 {[%clk 0:03:00]}  d5 {[%clk 0:02:57]} 2. exd5 {[%clk 0:03:00]}  Qxd5 {[%clk 0:02:57]} 3. Nc3 {[%clk 0:03:00]}  Qd8 {[%clk 0:02:57]} 4. d4 {[%clk 0:02:59]}  Nf6 {[%clk 0:02:58]} 5. Nf3 {[%clk 0:02:58]}  g6 {[%clk 0:02:56]} 6. h3 {[%clk 0:02:50]}  Bg7 {[%clk 0:02:56]} 7. Be3 {[%clk 0:02:50]}  c6 {[%clk 0:02:52]} 8. Qd2 {[%clk 0:02:51]}  Nbd7 {[%clk 0:02:46]} 9. O-O-O {[%clk 0:02:49]}  e6 {[%clk 0:02:35]} 10. Bh6 {[%clk 0:02:49]}  O-O {[%clk 0:02:34]} 11. Bxg7 {[%clk 0:02:41]}  Kxg7 {[%clk 0:02:34]} 12. h4 {[%clk 0:02:42]}  h5 {[%clk 0:02:28]} 13. Qg5 {[%clk 0:02:41]}  Ng4 {[%clk 0:02:25]} 14. Qxd8 {[%clk 0:02:32]}  Rxd8 {[%clk 0:02:25]} 15. Rd2 {[%clk 0:02:33]}  b6 {[%clk 0:02:24]} 16. Ne4 {[%clk 0:02:29]}  Ndf6 {[%clk 0:02:19]} 17. Nfg5 {[%clk 0:02:25]}  Bb7 {[%clk 0:02:15]} 18. f3 {[%clk 0:02:24]}  Ne3 {[%clk 0:02:15]} 19. Rd3 {[%clk 0:02:00]}  Nxf1 {[%clk 0:02:11]} 20. Rxf1 {[%clk 0:02:01]}  Ba6 {[%clk 0:02:10]} 21. Rfd1 {[%clk 0:01:54]}  Bxd3 {[%clk 0:02:09]} 22. Rxd3 {[%clk 0:01:55]}  Rd7 {[%clk 0:02:07]} 23. c3 {[%clk 0:01:54]}  Rad8 {[%clk 0:02:06]} 24. Re3 {[%clk 0:01:54]}  Nd5 {[%clk 0:02:06]} 25. Re1 {[%clk 0:01:49]}  Nf4 {[%clk 0:02:07]} 26. Kc2 {[%clk 0:01:43]}  Nxg2 {[%clk 0:02:06]} 27. Re2 {[%clk 0:01:44]}  Nxh4 {[%clk 0:02:07]} 28. a4 {[%clk 0:01:42]}  Re7 {[%clk 0:02:01]} 29. a5 {[%clk 0:01:41]}  f6 {[%clk 0:01:57]} 30. Nh3 {[%clk 0:01:39]}  e5 {[%clk 0:01:51]} 31. dxe5 {[%clk 0:01:37]}  Rxe5 {[%clk 0:01:50]} 32. axb6 {[%clk 0:01:38]}  axb6 {[%clk 0:01:50]} 33. f4 {[%clk 0:01:33]}  Re7 {[%clk 0:01:48]} 0-1


[Site "https://www.chess.com"]

[Event "Titled Tuesday Blitz June 28 Early 2022"]
[White "Silvestre, Christian"]
[Black "Bellahcene, Bilel"]
[WhiteFideId "30956269"]
[BlackFideId "696358"]
[WhiteElo "2344"]
[BlackElo "2543"]
[Result "1/2-1/2"]
[Round "04"]
[TimeControl "180+1"]
[Date "2022.06.28"]
[WhiteClock "0:01:12"]
[BlackClock "0:00:55"]

1. Nf3 {[%clk 0:03:00]}  d5 {[%clk 0:02:59]} 2. e4 {[%clk 0:02:59]}  dxe4 {[%clk 0:02:58]} 3. Ng5 {[%clk 0:02:58]}  Bf5 {[%clk 0:02:56]} 4. g4 {[%clk 0:02:57]}  Bg6 {[%clk 0:02:56]} 5. Bg2 {[%clk 0:02:57]}  Nf6 {[%clk 0:02:54]} 6. Nc3 {[%clk 0:02:55]}  h6 {[%clk 0:02:46]} 7. Ngxe4 {[%clk 0:02:54]}  Nxe4 {[%clk 0:02:44]} 8. Nxe4 {[%clk 0:02:53]}  e6 {[%clk 0:02:40]} 9. Qe2 {[%clk 0:02:51]}  c6 {[%clk 0:02:32]} 10. c3 {[%clk 0:02:47]}  Nd7 {[%clk 0:02:31]} 11. d4 {[%clk 0:02:47]}  Nf6 {[%clk 0:02:29]} 12. Bf4 {[%clk 0:02:41]}  Nxe4 {[%clk 0:02:20]} 13. Bxe4 {[%clk 0:02:39]}  Bxe4 {[%clk 0:02:20]} 14. Qxe4 {[%clk 0:02:38]}  Qd5 {[%clk 0:02:18]} 15. Qxd5 {[%clk 0:02:24]}  exd5 {[%clk 0:02:14]} 16. Ke2 {[%clk 0:02:22]}  Kd7 {[%clk 0:02:11]} 17. Rae1 {[%clk 0:02:19]}  Bd6 {[%clk 0:02:09]} 18. Kf3 {[%clk 0:02:18]}  Rae8 {[%clk 0:02:04]} 19. h4 {[%clk 0:02:16]}  h5 {[%clk 0:01:48]} 20. g5 {[%clk 0:02:05]}  g6 {[%clk 0:01:41]} 21. Bxd6 {[%clk 0:01:52]}  Kxd6 {[%clk 0:01:42]} 22. Kf4 {[%clk 0:01:52]}  b6 {[%clk 0:01:34]} 23. f3 {[%clk 0:01:48]}  c5 {[%clk 0:01:18]} 24. Rhf1 {[%clk 0:01:45]}  a5 {[%clk 0:01:16]} 25. Rg1 {[%clk 0:01:39]}  a4 {[%clk 0:01:15]} 26. Rgf1 {[%clk 0:01:38]}  c4 {[%clk 0:01:13]} 27. a3 {[%clk 0:01:34]}  Re6 {[%clk 0:00:57]} 28. Rxe6+ {[%clk 0:01:23]}  fxe6 {[%clk 0:00:58]} 29. Re1 {[%clk 0:01:19]}  Rf8+ {[%clk 0:00:57]} 30. Kg3 {[%clk 0:01:18]}  Rf5 {[%clk 0:00:55]} 31. f4 {[%clk 0:01:18]}  Rf7 {[%clk 0:00:55]} 32. Re3 {[%clk 0:01:12]}  Rf5 {[%clk 0:00:55]} 1/2-1/2


[Site "https://www.chess.com"]

[Event "Titled Tuesday Blitz June 28 Early 2022"]
[White "Snehal, Bhosale"]
[Black "Aradhya, Garg"]
[WhiteFideId "5021995"]
[BlackFideId "25006746"]
[WhiteElo "2103"]
[BlackElo "2203"]
[Result "1-0"]
[Round "04"]
[TimeControl "180+1"]
[Date "2022.06.28"]
[WhiteClock "0:00:14"]
[BlackClock "0:00:06"]

1. d4 {[%clk 0:03:00]}  d5 {[%clk 0:02:59]} 2. c4 {[%clk 0:03:00]}  c6 {[%clk 0:02:59]} 3. Nc3 {[%clk 0:03:00]}  Nf6 {[%clk 0:02:59]} 4. e3 {[%clk 0:03:01]}  Bf5 {[%clk 0:02:58]} 5. cxd5 {[%clk 0:03:00]}  cxd5 {[%clk 0:02:58]} 6. Qb3 {[%clk 0:03:00]}  Nc6 {[%clk 0:02:58]} 7. Qxb7 {[%clk 0:02:58]}  Bd7 {[%clk 0:02:57]} 8. Qb3 {[%clk 0:02:55]}  Rb8 {[%clk 0:02:56]} 9. Qd1 {[%clk 0:02:56]}  e5 {[%clk 0:02:56]} 10. dxe5 {[%clk 0:02:45]}  Nxe5 {[%clk 0:02:57]} 11. Nf3 {[%clk 0:02:46]}  Nxf3+ {[%clk 0:02:53]} 12. gxf3 {[%clk 0:02:37]}  Bc6 {[%clk 0:02:27]} 13. Bh3 {[%clk 0:02:35]}  Bc5 {[%clk 0:02:25]} 14. Ne2 {[%clk 0:02:14]}  O-O {[%clk 0:02:01]} 15. a3 {[%clk 0:02:06]}  d4 {[%clk 0:01:48]} 16. Nxd4 {[%clk 0:01:45]}  Bxd4 {[%clk 0:01:46]} 17. exd4 {[%clk 0:01:45]}  Re8+ {[%clk 0:01:45]} 18. Be3 {[%clk 0:01:40]}  Qa5+ {[%clk 0:01:38]} 19. b4 {[%clk 0:01:36]}  Qh5 {[%clk 0:01:37]} 20. Bg2 {[%clk 0:01:36]}  a5 {[%clk 0:01:36]} 21. Rc1 {[%clk 0:01:31]}  Bd7 {[%clk 0:01:18]} 22. Rc5 {[%clk 0:01:26]}  Bf5 {[%clk 0:00:55]} 23. Rxa5 {[%clk 0:01:19]}  Qg6 {[%clk 0:00:54]} 24. O-O {[%clk 0:01:15]}  Ra8 {[%clk 0:00:53]} 25. Kh1 {[%clk 0:00:53]}  Rxa5 {[%clk 0:00:52]} 26. bxa5 {[%clk 0:00:54]}  Nd5 {[%clk 0:00:52]} 27. Qd2 {[%clk 0:00:51]}  Rc8 {[%clk 0:00:49]} 28. Rc1 {[%clk 0:00:49]}  Qa6 {[%clk 0:00:48]} 29. Rxc8+ {[%clk 0:00:45]}  Qxc8 {[%clk 0:00:49]} 30. Bf1 {[%clk 0:00:40]}  h6 {[%clk 0:00:47]} 31. a6 {[%clk 0:00:40]}  Qc6 {[%clk 0:00:42]} 32. Qc1 {[%clk 0:00:38]}  Qa8 {[%clk 0:00:39]} 33. Bb5 {[%clk 0:00:35]}  Nc7 {[%clk 0:00:33]} 34. Qc6 {[%clk 0:00:33]}  Qxc6 {[%clk 0:00:25]} 35. Bxc6 {[%clk 0:00:34]}  Nxa6 {[%clk 0:00:26]} 36. Bf4 {[%clk 0:00:32]}  Bc8 {[%clk 0:00:17]} 37. d5 {[%clk 0:00:30]}  Nc5 {[%clk 0:00:17]} 38. Bd6 {[%clk 0:00:26]}  Nb7 {[%clk 0:00:16]} 39. Bb4 {[%clk 0:00:23]}  Nd8 {[%clk 0:00:16]} 40. Bb5 {[%clk 0:00:20]}  Bb7 {[%clk 0:00:16]} 41. Bc4 {[%clk 0:00:20]}  Bc8 {[%clk 0:00:13]} 42. a4 {[%clk 0:00:20]}  g5 {[%clk 0:00:11]} 43. a5 {[%clk 0:00:20]}  g4 {[%clk 0:00:10]} 44. fxg4 {[%clk 0:00:20]}  Bxg4 {[%clk 0:00:10]} 45. a6 {[%clk 0:00:19]}  Bc8 {[%clk 0:00:10]} 46. Ba5 {[%clk 0:00:16]}  Ne6 {[%clk 0:00:09]} 47. dxe6 {[%clk 0:00:16]}  fxe6 {[%clk 0:00:09]} 48. a7 {[%clk 0:00:16]}  Bb7+ {[%clk 0:00:09]} 49. Kg1 {[%clk 0:00:15]}  Kf7 {[%clk 0:00:10]} 50. Bf1 {[%clk 0:00:12]}  e5 {[%clk 0:00:10]} 51. Bg2 {[%clk 0:00:10]}  e4 {[%clk 0:00:10]} 52. Kf1 {[%clk 0:00:10]}  Ke6 {[%clk 0:00:10]} 53. Ke2 {[%clk 0:00:10]}  Ke5 {[%clk 0:00:04]} 54. Ke3 {[%clk 0:00:11]}  Kf5 {[%clk 0:00:04]} 55. f3 {[%clk 0:00:11]}  exf3 {[%clk 0:00:04]} 56. Bxf3 {[%clk 0:00:12]}  Bxf3 {[%clk 0:00:05]} 57. Kxf3 {[%clk 0:00:13]}  Kg5 {[%clk 0:00:05]} 58. a8=Q {[%clk 0:00:13]}  Kh4 {[%clk 0:00:06]} 59. Qd8+ {[%clk 0:00:12]}  Kh5 {[%clk 0:00:06]} 60. Qd5+ {[%clk 0:00:13]}  Kh4 {[%clk 0:00:06]} 61. Bd8+ {[%clk 0:00:13]}  Kh3 {[%clk 0:00:06]} 62. Qh5# {[%clk 0:00:14]} 1-0


[Site "https://www.chess.com"]

[Event "Titled Tuesday Blitz June 28 Early 2022"]
[White "Suleymanli, Suleyman"]
[Black "Agasarov, Benik"]
[WhiteFideId "13416375"]
[BlackFideId "13314823"]
[WhiteElo "1598"]
[BlackElo "2704"]
[Result "1-0"]
[Round "04"]
[TimeControl "180+1"]
[Date "2022.06.28"]
[WhiteClock "0:01:14"]
[BlackClock "0:01:14"]

1. Nf3 {[%clk 0:03:00]}  c5 {[%clk 0:02:55]} 2. g3 {[%clk 0:03:00]}  Nc6 {[%clk 0:02:55]} 3. d4 {[%clk 0:03:01]}  cxd4 {[%clk 0:02:55]} 4. Nxd4 {[%clk 0:03:02]}  Nf6 {[%clk 0:02:55]} 5. Bg2 {[%clk 0:03:02]}  h5 {[%clk 0:02:55]} 6. h4 {[%clk 0:02:59]}  e5 {[%clk 0:02:52]} 7. Nxc6 {[%clk 0:02:59]}  bxc6 {[%clk 0:02:53]} 8. O-O {[%clk 0:02:58]}  Bc5 {[%clk 0:02:52]} 9. c4 {[%clk 0:02:57]}  a5 {[%clk 0:02:51]} 10. Nc3 {[%clk 0:02:57]}  Ba6 {[%clk 0:02:50]} 11. Bg5 {[%clk 0:02:56]}  Rb8 {[%clk 0:02:44]} 12. Ne4 {[%clk 0:02:49]}  Be7 {[%clk 0:02:42]} 13. Nd6+ {[%clk 0:02:47]}  Kf8 {[%clk 0:02:39]} 14. b3 {[%clk 0:02:40]}  Ne8 {[%clk 0:02:35]} 15. Ne4 {[%clk 0:02:17]}  f6 {[%clk 0:02:32]} 16. Be3 {[%clk 0:02:16]}  d5 {[%clk 0:02:31]} 17. Nc5 {[%clk 0:02:16]}  Bc8 {[%clk 0:02:11]} 18. cxd5 {[%clk 0:02:14]}  cxd5 {[%clk 0:02:07]} 19. Bxd5 {[%clk 0:02:10]}  Nc7 {[%clk 0:02:01]} 20. Bc4 {[%clk 0:02:10]}  Bh3 {[%clk 0:01:59]} 21. Qxd8+ {[%clk 0:02:09]}  Rxd8 {[%clk 0:01:58]} 22. Rfd1 {[%clk 0:02:09]}  Rc8 {[%clk 0:01:53]} 23. Nd7+ {[%clk 0:02:05]}  Ke8 {[%clk 0:01:50]} 24. Nb6 {[%clk 0:02:05]}  Rb8 {[%clk 0:01:47]} 25. Rac1 {[%clk 0:02:05]}  Ba3 {[%clk 0:01:43]} 26. Rc2 {[%clk 0:02:04]}  Bf5 {[%clk 0:01:42]} 27. Bd3 {[%clk 0:02:03]}  Bxd3 {[%clk 0:01:41]} 28. Rxc7 {[%clk 0:01:57]}  Bxe2 {[%clk 0:01:39]} 29. Rdd7 {[%clk 0:01:57]}  Bf8 {[%clk 0:01:34]} 30. Rb7 {[%clk 0:01:17]}  Rxb7 {[%clk 0:01:28]} 31. Rxb7 {[%clk 0:01:18]}  Bf3 {[%clk 0:01:25]} 32. Ra7 {[%clk 0:01:15]}  g5 {[%clk 0:01:22]} 33. hxg5 {[%clk 0:01:12]}  h4 {[%clk 0:01:20]} 34. gxf6 {[%clk 0:01:13]}  hxg3 {[%clk 0:01:15]} 35. f7+ {[%clk 0:01:13]}  Kd8 {[%clk 0:01:14]} 36. Rd7# {[%clk 0:01:14]} 1-0


[Site "https://www.chess.com"]

[Event "Titled Tuesday Blitz June 28 Early 2022"]
[White "Tari, Aryan"]
[Black "Guz, Ari"]
[WhiteFideId "1510045"]
[BlackFideId "2825759"]
[WhiteElo "2567"]
[BlackElo "1913"]
[Result "1-0"]
[Round "04"]
[TimeControl "180+1"]
[Date "2022.06.28"]
[WhiteClock "0:00:15"]
[BlackClock "0:00:04"]

1. Nf3 {[%clk 0:02:58]}  Nf6 {[%clk 0:02:59]} 2. c4 {[%clk 0:02:58]}  e6 {[%clk 0:02:59]} 3. Nc3 {[%clk 0:02:52]}  d5 {[%clk 0:02:59]} 4. e3 {[%clk 0:02:53]}  a6 {[%clk 0:02:49]} 5. b3 {[%clk 0:02:45]}  Be7 {[%clk 0:02:46]} 6. Bb2 {[%clk 0:02:44]}  O-O {[%clk 0:02:44]} 7. Be2 {[%clk 0:02:41]}  dxc4 {[%clk 0:02:38]} 8. bxc4 {[%clk 0:02:40]}  b6 {[%clk 0:02:38]} 9. d4 {[%clk 0:02:36]}  Bb7 {[%clk 0:02:38]} 10. Qb3 {[%clk 0:02:20]}  c5 {[%clk 0:02:28]} 11. O-O {[%clk 0:01:35]}  cxd4 {[%clk 0:02:17]} 12. exd4 {[%clk 0:01:32]}  Nbd7 {[%clk 0:02:18]} 13. Rfd1 {[%clk 0:01:24]}  Qc7 {[%clk 0:02:10]} 14. d5 {[%clk 0:01:18]}  Nc5 {[%clk 0:02:03]} 15. Qc2 {[%clk 0:01:18]}  Rfd8 {[%clk 0:01:54]} 16. dxe6 {[%clk 0:00:52]}  Nxe6 {[%clk 0:01:52]} 17. Qf5 {[%clk 0:00:49]}  Qc5 {[%clk 0:01:44]} 18. Nd5 {[%clk 0:00:49]}  Nxd5 {[%clk 0:01:25]} 19. cxd5 {[%clk 0:00:49]}  Rxd5 {[%clk 0:01:26]} 20. Ne5 {[%clk 0:00:45]}  Bf6 {[%clk 0:01:05]} 21. Rxd5 {[%clk 0:00:33]}  Qxd5 {[%clk 0:01:05]} 22. Bf3 {[%clk 0:00:28]}  Qb5 {[%clk 0:01:01]} 23. Bxb7 {[%clk 0:00:28]}  Qxb2 {[%clk 0:01:01]} 24. Rb1 {[%clk 0:00:28]}  Rd8 {[%clk 0:00:44]} 25. Ng4 {[%clk 0:00:22]}  Qc3 {[%clk 0:00:04]} 26. Nxf6+ {[%clk 0:00:18]}  Qxf6 {[%clk 0:00:02]} 27. Qxf6 {[%clk 0:00:19]}  gxf6 {[%clk 0:00:03]} 28. Bxa6 {[%clk 0:00:19]}  Ra8 {[%clk 0:00:03]} 29. Bd3 {[%clk 0:00:19]}  Rxa2 {[%clk 0:00:03]} 30. Rxb6 {[%clk 0:00:19]}  Ra1+ {[%clk 0:00:03]} 31. Bf1 {[%clk 0:00:19]}  Kg7 {[%clk 0:00:03]} 32. g3 {[%clk 0:00:19]}  Ng5 {[%clk 0:00:04]} 33. Kg2 {[%clk 0:00:18]}  Ra2 {[%clk 0:00:05]} 34. Rb4 {[%clk 0:00:17]}  f5 {[%clk 0:00:04]} 35. Bd3 {[%clk 0:00:17]}  Kg6 {[%clk 0:00:04]} 36. Rf4 {[%clk 0:00:16]}  Ra5 {[%clk 0:00:04]} 37. g4 {[%clk 0:00:16]}  Kg7 {[%clk 0:00:03]} 38. Bxf5 {[%clk 0:00:16]}  f6 {[%clk 0:00:04]} 39. h4 {[%clk 0:00:16]}  Nf7 {[%clk 0:00:04]} 40. Rb4 {[%clk 0:00:16]}  Nh6 {[%clk 0:00:04]} 41. Rb7+ {[%clk 0:00:16]}  Kf8 {[%clk 0:00:05]} 42. Be6 {[%clk 0:00:15]}  Re5 {[%clk 0:00:04]} 43. Rxh7 {[%clk 0:00:15]} 1-0


[Site "https://www.chess.com"]

[Event "Titled Tuesday Blitz June 28 Early 2022"]
[White "Torres Cueto, Jesus Marcial"]
[Black "Yaksin, Oleg"]
[WhiteFideId "4415280"]
[BlackFideId "24105880"]
[WhiteElo "2055"]
[BlackElo "2256"]
[Result "1-0"]
[Round "04"]
[TimeControl "180+1"]
[Date "2022.06.28"]
[WhiteClock "0:00:47"]
[BlackClock "0:00:02"]

1. d4 {[%clk 0:02:59]}  Nf6 {[%clk 0:02:53]} 2. c4 {[%clk 0:02:57]}  e6 {[%clk 0:02:53]} 3. Nc3 {[%clk 0:02:57]}  Bb4 {[%clk 0:02:53]} 4. e3 {[%clk 0:02:54]}  O-O {[%clk 0:02:53]} 5. Ne2 {[%clk 0:02:53]}  d5 {[%clk 0:02:51]} 6. cxd5 {[%clk 0:02:51]}  exd5 {[%clk 0:02:51]} 7. h3 {[%clk 0:02:52]}  c6 {[%clk 0:02:47]} 8. g4 {[%clk 0:02:51]}  Ne4 {[%clk 0:02:38]} 9. Bg2 {[%clk 0:02:51]}  f5 {[%clk 0:02:30]} 10. Bxe4 {[%clk 0:02:46]}  fxe4 {[%clk 0:02:29]} 11. Ng3 {[%clk 0:02:41]}  Bd6 {[%clk 0:02:17]} 12. Nce2 {[%clk 0:02:40]}  Na6 {[%clk 0:02:14]} 13. a3 {[%clk 0:02:38]}  Nc7 {[%clk 0:02:13]} 14. Bd2 {[%clk 0:02:38]}  Ne6 {[%clk 0:02:13]} 15. h4 {[%clk 0:02:25]}  Nc7 {[%clk 0:02:13]} 16. Nf4 {[%clk 0:02:24]}  Bxf4 {[%clk 0:01:58]} 17. exf4 {[%clk 0:02:24]}  Ne6 {[%clk 0:01:59]} 18. Ne2 {[%clk 0:02:21]}  Qb6 {[%clk 0:01:55]} 19. Be3 {[%clk 0:02:12]}  Qxb2 {[%clk 0:01:51]} 20. f5 {[%clk 0:02:12]}  Nd8 {[%clk 0:01:45]} 21. O-O {[%clk 0:02:08]}  h5 {[%clk 0:01:39]} 22. Ng3 {[%clk 0:02:04]}  hxg4 {[%clk 0:01:30]} 23. Qxg4 {[%clk 0:02:05]}  Qb6 {[%clk 0:01:25]} 24. Kh1 {[%clk 0:01:52]}  Qc7 {[%clk 0:01:23]} 25. Rg1 {[%clk 0:01:52]}  Qf7 {[%clk 0:01:13]} 26. Bf4 {[%clk 0:01:50]}  Kh7 {[%clk 0:00:57]} 27. Be5 {[%clk 0:01:49]}  c5 {[%clk 0:00:54]} 28. Nh5 {[%clk 0:01:45]}  Bxf5 {[%clk 0:00:51]} 29. Qxg7+ {[%clk 0:01:36]}  Qxg7 {[%clk 0:00:51]} 30. Rxg7+ {[%clk 0:01:37]}  Kh6 {[%clk 0:00:51]} 31. Nf4 {[%clk 0:01:34]}  Nc6 {[%clk 0:00:44]} 32. Rg5 {[%clk 0:01:26]}  Nxe5 {[%clk 0:00:23]} 33. dxe5 {[%clk 0:01:25]}  Bd7 {[%clk 0:00:06]} 34. Nxd5 {[%clk 0:01:21]}  Bc6 {[%clk 0:00:04]} 35. Nf6 {[%clk 0:01:18]}  e3+ {[%clk 0:00:04]} 36. Kg1 {[%clk 0:01:18]}  exf2+ {[%clk 0:00:04]} 37. Kxf2 {[%clk 0:01:19]}  Rae8 {[%clk 0:00:04]} 38. Rh5+ {[%clk 0:01:10]}  Kg6 {[%clk 0:00:04]} 39. Rg1+ {[%clk 0:01:10]}  Kf7 {[%clk 0:00:04]} 40. Nh7 {[%clk 0:00:57]}  Ke6+ {[%clk 0:00:03]} 41. Nxf8+ {[%clk 0:00:57]}  Rxf8+ {[%clk 0:00:04]} 42. Ke3 {[%clk 0:00:57]}  Rf3+ {[%clk 0:00:04]} 43. Ke2 {[%clk 0:00:57]}  Rxa3 {[%clk 0:00:05]} 44. Rg6+ {[%clk 0:00:57]}  Kd5 {[%clk 0:00:05]} 45. Rd6+ {[%clk 0:00:56]}  Ke4 {[%clk 0:00:04]} 46. e6 {[%clk 0:00:55]}  Kf4 {[%clk 0:00:04]} 47. Rxc5 {[%clk 0:00:51]}  Re3+ {[%clk 0:00:04]} 48. Kd2 {[%clk 0:00:50]}  Re4 {[%clk 0:00:05]} 49. h5 {[%clk 0:00:48]}  Kg4 {[%clk 0:00:03]} 50. h6 {[%clk 0:00:48]}  Be8 {[%clk 0:00:02]} 51. h7 {[%clk 0:00:47]} 1-0


[Site "https://www.chess.com"]